[Event "Live Chess"]
[Site "Chess.com"]
[Date "2023.05.21"]
[Round "-"]
[White "Missedidea"]
[Black "LiamClery2020"]
[Result "1-0"]
[WhiteElo "1781"]
[BlackElo "1991"]
[TimeControl "300"]
[EndTime "8:43:37 PDT"]
[Termination "Missedidea won by resignation"]

1. d4 {[%clk 0:04:58.3]} 1... Nf6 {[%clk 0:04:58.5]} 2. c4 {[%clk 0:04:57]} 2...
e6 {[%clk 0:04:57.2]} 3. Nc3 {[%clk 0:04:56]} 3... d5 {[%clk 0:04:55.5]} 4. Bg5
{[%clk 0:04:53.9]} 4... Be7 {[%clk 0:04:54.4]} 5. e3 {[%clk 0:04:52.9]} 5... c5
{[%clk 0:04:48.8]} 6. Nf3 {[%clk 0:04:51.1]} 6... h6 {[%clk 0:04:47]} 7. Bh4
{[%clk 0:04:48.9]} 7... Ne4 {[%clk 0:04:46.1]} 8. Bxe7 {[%clk 0:04:41.5]} 8...
Nxc3 {[%clk 0:04:45]} 9. bxc3 {[%clk 0:04:39.5]} 9... Qxe7 {[%clk 0:04:43.9]}
10. cxd5 {[%clk 0:04:34.3]} 10... exd5 {[%clk 0:04:43.8]} 11. Bb5+ {[%clk
0:04:28.4]} 11... Nc6 {[%clk 0:04:42.7]} 12. Ne5 {[%clk 0:04:24.1]} 12... Bd7
{[%clk 0:04:13.5]} 13. Nxd7 {[%clk 0:04:21.6]} 13... Qxd7 {[%clk 0:04:12.6]} 14.
O-O {[%clk 0:04:20]} 14... cxd4 {[%clk 0:04:11.5]} 15. cxd4 {[%clk 0:04:11]}
15... O-O {[%clk 0:04:09.9]} 16. Rc1 {[%clk 0:04:09.3]} 16... Rac8 {[%clk
0:04:08.8]} 17. Qa4 {[%clk 0:04:06.6]} 17... a6 {[%clk 0:04:04.7]} 18. Bxc6
{[%clk 0:04:04.5]} 18... Rxc6 {[%clk 0:04:04]} 19. Rxc6 {[%clk 0:04:01.1]} 19...
Qxc6 {[%clk 0:04:03]} 20. Qxc6 {[%clk 0:03:59.8]} 20... bxc6 {[%clk 0:04:02.9]}
21. Rc1 {[%clk 0:03:57.8]} 21... Rb8 {[%clk 0:04:02.3]} 22. Kf1 {[%clk 0:03:55]}
22... Rb6 {[%clk 0:03:58.2]} 23. Ke1 {[%clk 0:03:48]} 23... Kf8 {[%clk
0:03:57.5]} 24. f3 {[%clk 0:03:46.8]} 24... Ke7 {[%clk 0:03:56.8]} 25. Kf2
{[%clk 0:03:46]} 25... Kd6 {[%clk 0:03:56.3]} 26. Rc2 {[%clk 0:03:42.6]} 26...
g5 {[%clk 0:03:55.4]} 27. Kg3 {[%clk 0:03:41.2]} 27... a5 {[%clk 0:03:53.5]} 28.
h4 {[%clk 0:03:34.5]} 28... Rb8 {[%clk 0:03:39.5]} 29. hxg5 {[%clk 0:03:32.5]}
29... hxg5 {[%clk 0:03:39.4]} 30. Kg4 {[%clk 0:03:31.2]} 30... Ke6 {[%clk
0:03:36.9]} 31. Rxc6+ {[%clk 0:03:28]} 31... Kd7 {[%clk 0:03:35.8]} 32. Ra6
{[%clk 0:03:25.1]} 32... Rb5 {[%clk 0:03:34.5]} 33. Kxg5 {[%clk 0:03:22.4]}
33... Rb2 {[%clk 0:03:34.1]} 34. Rxa5 {[%clk 0:03:17.6]} 34... Rxg2+ {[%clk
0:03:33.3]} 35. Kf6 {[%clk 0:03:12.5]} 35... Rf2 {[%clk 0:03:31.8]} 36. Rxd5+
{[%clk 0:03:02]} 36... Kc6 {[%clk 0:03:30.8]} 37. Ke5 {[%clk 0:03:00.3]} 37...
Rxa2 {[%clk 0:03:19.9]} 38. f4 {[%clk 0:02:54.1]} 38... Re2 {[%clk 0:03:16.6]}
39. e4 {[%clk 0:02:50.5]} 39... Rh2 {[%clk 0:03:15]} 40. f5 {[%clk 0:02:45.1]}
40... Rh8 {[%clk 0:03:13.4]} 41. Rd6+ {[%clk 0:02:41.9]} 41... Kc7 {[%clk
0:03:12.6]} 42. Kd5 {[%clk 0:02:37.5]} 42... Ra8 {[%clk 0:03:05]} 43. Rf6 {[%clk
0:02:31.5]} 43... Ra5+ {[%clk 0:02:59.6]} 44. Kc4 {[%clk 0:02:29.3]} 44... Ra4+
{[%clk 0:02:58.7]} 45. Kc3 {[%clk 0:02:26.9]} 45... Ra3+ {[%clk 0:02:54.8]} 46.
Kb4 {[%clk 0:02:25.4]} 46... Re3 {[%clk 0:02:54.3]} 47. e5 {[%clk 0:02:21.3]}
47... Re4 {[%clk 0:02:50.4]} 48. Kc5 {[%clk 0:02:19.9]} 48... Kd7 {[%clk
0:02:50.1]} 49. Rxf7+ {[%clk 0:02:18.5]} 49... Ke8 {[%clk 0:02:50]} 50. Ra7
{[%clk 0:02:16.2]} 50... Rh4 {[%clk 0:02:48.4]} 51. f6 {[%clk 0:02:14.6]} 51...
Rh7 {[%clk 0:02:43.8]} 52. Rxh7 {[%clk 0:02:11.2]} 1-0

[Event "Live Chess"]
[Site "Chess.com"]
[Date "2023.05.21"]
[Round "-"]
[White "FlyingChessKestrel13"]
[Black "CeladonFish"]
[Result "1-0"]
[WhiteElo "2073"]
[BlackElo "1136"]
[TimeControl "300"]
[EndTime "8:43:44 PDT"]
[Termination "FlyingChessKestrel13 won by resignation"]

1. e4 {[%clk 0:04:57.2]} 1... d6 {[%clk 0:04:57.6]} 2. d4 {[%clk 0:04:55.5]}
2... Nf6 {[%clk 0:04:55.8]} 3. Nc3 {[%clk 0:04:53.6]} 3... g6 {[%clk 0:04:54.3]}
4. Bc4 {[%clk 0:04:48.9]} 4... Nxe4 {[%clk 0:04:50.9]} 5. Bxf7+ {[%clk
0:04:46.6]} 5... Kxf7 {[%clk 0:04:49.1]} 6. Nxe4 {[%clk 0:04:46.2]} 6... d5
{[%clk 0:04:46.7]} 7. Ng5+ {[%clk 0:04:45.1]} 7... Ke8 {[%clk 0:04:41]} 8. Qf3
{[%clk 0:04:40.5]} 8... Bf5 {[%clk 0:04:29.2]} 9. g4 {[%clk 0:04:29.7]} 9... h6
{[%clk 0:03:46.3]} 10. gxf5 {[%clk 0:04:17.9]} 10... gxf5 {[%clk 0:03:40.4]} 11.
Qh5+ {[%clk 0:04:04.7]} 11... Kd7 {[%clk 0:03:37.3]} 12. Nf7 {[%clk 0:04:01.3]}
1-0

[Event "Live Chess"]
[Site "Chess.com"]
[Date "2023.05.21"]
[Round "-"]
[White "PaulyD81"]
[Black "whatnot126"]
[Result "0-1"]
[WhiteElo "1105"]
[BlackElo "2071"]
[TimeControl "300"]
[EndTime "8:44:07 PDT"]
[Termination "whatnot126 won by resignation"]

1. d4 {[%clk 0:04:58.9]} 1... d6 {[%clk 0:04:59.3]} 2. c4 {[%clk 0:04:57.4]}
2... Nf6 {[%clk 0:04:58.5]} 3. Nc3 {[%clk 0:04:53.6]} 3... g6 {[%clk 0:04:57.9]}
4. e3 {[%clk 0:04:52.7]} 4... Bg7 {[%clk 0:04:57.3]} 5. Nf3 {[%clk 0:04:52.1]}
5... O-O {[%clk 0:04:55.2]} 6. Qc2 {[%clk 0:04:50.9]} 6... Nbd7 {[%clk
0:04:54.7]} 7. Be2 {[%clk 0:04:49.8]} 7... b6 {[%clk 0:04:52]} 8. O-O {[%clk
0:04:42.7]} 8... Bb7 {[%clk 0:04:47.6]} 9. d5 {[%clk 0:04:37.1]} 9... e6 {[%clk
0:04:42.9]} 10. e4 {[%clk 0:04:32]} 10... Nc5 {[%clk 0:04:32.9]} 11. b4 {[%clk
0:04:26.6]} 11... Ncxe4 {[%clk 0:04:31.2]} 12. Nxe4 {[%clk 0:04:21.3]} 12...
Nxe4 {[%clk 0:04:31.1]} 13. Bb2 {[%clk 0:03:48.2]} 13... exd5 {[%clk 0:04:22.1]}
14. Bxg7 {[%clk 0:03:44.6]} 14... Kxg7 {[%clk 0:04:21.2]} 15. cxd5 {[%clk
0:03:33.3]} 15... Bxd5 {[%clk 0:04:19.1]} 16. Bd3 {[%clk 0:03:24.6]} 16... Nf6
{[%clk 0:04:14.6]} 17. Rfe1 {[%clk 0:03:13.7]} 17... Bxf3 {[%clk 0:04:06.4]} 18.
gxf3 {[%clk 0:03:09.8]} 18... Rc8 {[%clk 0:04:03.4]} 19. b5 {[%clk 0:02:52.5]}
19... Nd7 {[%clk 0:03:59.1]} 20. Qc3+ {[%clk 0:02:44.2]} 20... Qf6 {[%clk
0:03:56.9]} 21. Qxf6+ {[%clk 0:02:25]} 21... Kxf6 {[%clk 0:03:56.8]} 22. Re4
{[%clk 0:02:09.2]} 22... Ne5 {[%clk 0:03:53.5]} 23. Rf4+ {[%clk 0:02:00]} 23...
Kg5 {[%clk 0:03:50.5]} 24. Rd4 {[%clk 0:01:19.5]} 24... Nxf3+ {[%clk 0:03:47.8]}
25. Kg2 {[%clk 0:01:12.2]} 25... Nxd4 {[%clk 0:03:47.7]} 0-1

[Event "Live Chess"]
[Site "Chess.com"]
[Date "2023.05.21"]
[Round "-"]
[White "MartinWalker4"]
[Black "SupremeTactician"]
[Result "1-0"]
[WhiteElo "2095"]
[BlackElo "2160"]
[TimeControl "300"]
[EndTime "8:44:17 PDT"]
[Termination "MartinWalker4 won by resignation"]

1. e4 {[%clk 0:04:56.7]} 1... e5 {[%clk 0:04:59.1]} 2. Nf3 {[%clk 0:04:54.8]}
2... Nc6 {[%clk 0:04:57.3]} 3. Bb5 {[%clk 0:04:53.6]} 3... a6 {[%clk 0:04:56.5]}
4. Ba4 {[%clk 0:04:51.9]} 4... Nf6 {[%clk 0:04:55.8]} 5. O-O {[%clk 0:04:50.5]}
5... Nxe4 {[%clk 0:04:55.2]} 6. d4 {[%clk 0:04:49.1]} 6... Be7 {[%clk
0:04:54.5]} 7. dxe5 {[%clk 0:04:31.4]} 7... O-O {[%clk 0:04:52.8]} 8. Re1 {[%clk
0:04:29.2]} 8... Nc5 {[%clk 0:04:52]} 9. Bxc6 {[%clk 0:04:22.2]} 9... dxc6
{[%clk 0:04:50.5]} 10. Nc3 {[%clk 0:04:21]} 10... Be6 {[%clk 0:04:49.4]} 11. Nd4
{[%clk 0:04:18.4]} 11... h6 {[%clk 0:04:43.7]} 12. Nxe6 {[%clk 0:04:10.2]} 12...
Nxe6 {[%clk 0:04:43.6]} 13. Be3 {[%clk 0:04:06.1]} 13... Bc5 {[%clk 0:04:42.5]}
14. Qg4 {[%clk 0:03:51.4]} 14... Bxe3 {[%clk 0:04:40.6]} 15. Rxe3 {[%clk
0:03:49.8]} 15... Qg5 {[%clk 0:04:37.9]} 16. Qxg5 {[%clk 0:03:38]} 16... hxg5
{[%clk 0:04:37.8]} 17. Ne4 {[%clk 0:03:26.3]} 17... Rad8 {[%clk 0:04:35.6]} 18.
Rg3 {[%clk 0:03:21.6]} 18... f6 {[%clk 0:04:33.6]} 19. exf6 {[%clk 0:03:16.9]}
19... gxf6 {[%clk 0:04:33.5]} 20. h4 {[%clk 0:03:14.4]} 20... Rd4 {[%clk
0:04:31.5]} 21. f3 {[%clk 0:03:09.4]} 21... Kf7 {[%clk 0:04:26.6]} 22. hxg5
{[%clk 0:03:06.9]} 22... fxg5 {[%clk 0:04:26.5]} 23. Nxg5+ {[%clk 0:03:01.6]}
23... Nxg5 {[%clk 0:04:26.4]} 24. Rxg5 {[%clk 0:03:00.2]} 24... Rd2 {[%clk
0:04:26.3]} 25. Rf5+ {[%clk 0:02:47]} 25... Ke7 {[%clk 0:04:24.3]} 26. Re1+
{[%clk 0:02:43.5]} 1-0

[Event "Live Chess"]
[Site "Chess.com"]
[Date "2023.05.21"]
[Round "-"]
[White "lateforthesky"]
[Black "Cimon"]
[Result "0-1"]
[WhiteElo "2074"]
[BlackElo "1847"]
[TimeControl "300"]
[EndTime "8:44:18 PDT"]
[Termination "Cimon won by resignation"]

1. e4 {[%clk 0:04:56.3]} 1... d6 {[%clk 0:04:58]} 2. d4 {[%clk 0:04:54.7]} 2...
Nf6 {[%clk 0:04:56.6]} 3. Nc3 {[%clk 0:04:53.4]} 3... g6 {[%clk 0:04:55.5]} 4.
f4 {[%clk 0:04:53]} 4... Bg7 {[%clk 0:04:54.3]} 5. Bd3 {[%clk 0:04:52.1]} 5...
O-O {[%clk 0:04:52.8]} 6. Nf3 {[%clk 0:04:51.2]} 6... c5 {[%clk 0:04:51.4]} 7.
dxc5 {[%clk 0:04:49.7]} 7... dxc5 {[%clk 0:04:49.5]} 8. e5 {[%clk 0:04:49.1]}
8... Nd5 {[%clk 0:04:42.3]} 9. Nxd5 {[%clk 0:04:47.9]} 9... Qxd5 {[%clk
0:04:40.7]} 10. Qe2 {[%clk 0:04:47.2]} 10... Bg4 {[%clk 0:04:33.9]} 11. Be4
{[%clk 0:04:45.4]} 11... Qd7 {[%clk 0:04:30.4]} 12. Be3 {[%clk 0:04:38.6]} 12...
Qc7 {[%clk 0:04:24.4]} 13. O-O-O {[%clk 0:04:31.9]} 13... Na6 {[%clk 0:04:22.8]}
14. h3 {[%clk 0:04:30.2]} 14... Be6 {[%clk 0:04:18.6]} 15. Kb1 {[%clk
0:04:23.6]} 15... Qa5 {[%clk 0:04:07.6]} 16. a3 {[%clk 0:04:21.5]} 16... Rab8
{[%clk 0:04:00.1]} 17. Ng5 {[%clk 0:04:18.8]} 17... b5 {[%clk 0:03:36.7]} 18.
Nxe6 {[%clk 0:04:14.9]} 18... fxe6 {[%clk 0:03:35.6]} 19. Rd7 {[%clk 0:04:03.5]}
19... b4 {[%clk 0:03:18.3]} 20. a4 {[%clk 0:03:57.2]} 20... Qxa4 {[%clk
0:03:11.6]} 21. Rxa7 {[%clk 0:03:54.4]} 21... b3 {[%clk 0:03:00.2]} 22. Rxa6
{[%clk 0:03:47.9]} 22... Qxe4 {[%clk 0:02:57.5]} 23. Rc1 {[%clk 0:03:26.4]}
23... Bh6 {[%clk 0:02:45.8]} 24. Qd3 {[%clk 0:03:16.8]} 24... bxc2+ {[%clk
0:02:03.9]} 25. Rxc2 {[%clk 0:03:14.4]} 25... Qxd3 {[%clk 0:02:02.3]} 0-1

[Event "Live Chess"]
[Site "Chess.com"]
[Date "2023.05.21"]
[Round "-"]
[White "GMHarry-youtube"]
[Black "ramses-IIG"]
[Result "1-0"]
[WhiteElo "2001"]
[BlackElo "854"]
[TimeControl "300"]
[EndTime "8:44:19 PDT"]
[Termination "GMHarry-youtube won by resignation"]

1. e4 {[%clk 0:04:57.6]} 1... d5 {[%clk 0:04:59.9]} 2. exd5 {[%clk 0:04:56.5]}
2... Qxd5 {[%clk 0:04:59.8]} 3. Nc3 {[%clk 0:04:56.2]} 3... Qe6+ {[%clk
0:04:59.7]} 4. Qe2 {[%clk 0:04:55.1]} 4... Qg6 {[%clk 0:04:59.6]} 5. d4 {[%clk
0:04:53.8]} 5... c6 {[%clk 0:04:57.1]} 6. Nf3 {[%clk 0:04:53.4]} 6... e6 {[%clk
0:04:55.4]} 7. Ne5 {[%clk 0:04:53.3]} 7... Qf6 {[%clk 0:04:54.1]} 8. h4 {[%clk
0:04:50.9]} 8... Bd6 {[%clk 0:04:51]} 9. Bg5 {[%clk 0:04:50.4]} 9... Qf5 {[%clk
0:04:43.1]} 10. g4 {[%clk 0:04:49.6]} 10... Qxc2 {[%clk 0:04:31.3]} 11. Qxc2
{[%clk 0:04:46.6]} 11... Bxe5 {[%clk 0:04:31.2]} 12. dxe5 {[%clk 0:04:45.1]}
12... c5 {[%clk 0:04:30.8]} 13. O-O-O {[%clk 0:04:44.2]} 1-0

[Event "Live Chess"]
[Site "Chess.com"]
[Date "2023.05.21"]
[Round "-"]
[White "Ian-Morley"]
[Black "Ra2orLeaf"]
[Result "0-1"]
[WhiteElo "1096"]
[BlackElo "1137"]
[TimeControl "300"]
[EndTime "8:44:35 PDT"]
[Termination "Ra2orLeaf won by resignation"]

1. e4 {[%clk 0:04:58.4]} 1... c5 {[%clk 0:04:57.7]} 2. Nf3 {[%clk 0:04:57.8]}
2... Nc6 {[%clk 0:04:56.5]} 3. Bb5 {[%clk 0:04:57.2]} 3... e6 {[%clk 0:04:55.7]}
4. Bxc6 {[%clk 0:04:56.9]} 4... bxc6 {[%clk 0:04:55.6]} 5. O-O {[%clk
0:04:56.5]} 5... d5 {[%clk 0:04:55.2]} 6. Re1 {[%clk 0:04:56.2]} 6... Ne7 {[%clk
0:04:52.6]} 7. c3 {[%clk 0:04:55.8]} 7... c4 {[%clk 0:04:47]} 8. d4 {[%clk
0:04:55.1]} 8... cxd3 {[%clk 0:04:46.1]} 9. Qxd3 {[%clk 0:04:54]} 9... Bb7
{[%clk 0:04:41.7]} 10. exd5 {[%clk 0:04:53.1]} 10... cxd5 {[%clk 0:04:41.6]} 11.
Ne5 {[%clk 0:04:52]} 11... Nc6 {[%clk 0:04:37.6]} 12. Qf3 {[%clk 0:04:51]} 12...
Nxe5 {[%clk 0:04:36.3]} 13. Rxe5 {[%clk 0:04:50.2]} 13... Be7 {[%clk 0:04:33.6]}
14. Nd2 {[%clk 0:04:45.7]} 14... O-O {[%clk 0:04:30.8]} 15. Re3 {[%clk
0:04:43.5]} 15... d4 {[%clk 0:04:24.3]} 16. cxd4 {[%clk 0:04:42.1]} 16... Bxf3
{[%clk 0:04:23]} 17. gxf3 {[%clk 0:04:39.6]} 17... Bg5 {[%clk 0:04:19.6]} 18. f4
{[%clk 0:04:38.3]} 18... Bxf4 {[%clk 0:04:18.7]} 19. Rf3 {[%clk 0:04:37.3]}
19... Qg5+ {[%clk 0:04:17.5]} 20. Kf1 {[%clk 0:04:34.6]} 20... Bxd2 {[%clk
0:04:15]} 21. Bxd2 {[%clk 0:04:34]} 21... Qxd2 {[%clk 0:04:14.8]} 22. Kg2 {[%clk
0:04:32.3]} 22... Rac8 {[%clk 0:04:13.3]} 23. Rg1 {[%clk 0:04:30.2]} 23... Rc2
{[%clk 0:04:11.5]} 24. Kh3 {[%clk 0:04:28.3]} 24... Qxd4 {[%clk 0:04:06.9]} 25.
Rfg3 {[%clk 0:04:27.5]} 25... g6 {[%clk 0:04:03.2]} 26. f3 {[%clk 0:04:25.1]}
0-1

[Event "Live Chess"]
[Site "Chess.com"]
[Date "2023.05.21"]
[Round "-"]
[White "luckywookie"]
[Black "slava_ukr"]
[Result "0-1"]
[WhiteElo "823"]
[BlackElo "2347"]
[TimeControl "300"]
[EndTime "8:44:41 PDT"]
[Termination "slava_ukr won by checkmate"]

1. e4 {[%clk 0:04:56.4]} 1... e5 {[%clk 0:04:59.1]} 2. Nf3 {[%clk 0:04:55.5]}
2... Nc6 {[%clk 0:04:58.4]} 3. b3 {[%clk 0:04:48]} 3... Nf6 {[%clk 0:04:56.6]}
4. Bb2 {[%clk 0:04:46.9]} 4... Nxe4 {[%clk 0:04:55.1]} 5. Nxe5 {[%clk
0:04:30.5]} 5... Nxe5 {[%clk 0:04:52.8]} 6. Bxe5 {[%clk 0:04:28.6]} 6... Qe7
{[%clk 0:04:52]} 7. d4 {[%clk 0:04:24.7]} 7... d6 {[%clk 0:04:49.1]} 8. Bf4
{[%clk 0:04:16.7]} 8... Nc3+ {[%clk 0:04:47.6]} 9. Be3 {[%clk 0:04:12.1]} 9...
Nxd1 {[%clk 0:04:46.8]} 10. Kxd1 {[%clk 0:04:11]} 10... Bf5 {[%clk 0:04:40.1]}
11. Bd3 {[%clk 0:04:10.1]} 11... Bxd3 {[%clk 0:04:38.6]} 12. cxd3 {[%clk
0:04:09.4]} 12... O-O-O {[%clk 0:04:37.8]} 13. Re1 {[%clk 0:04:08.9]} 13... Qd7
{[%clk 0:04:36.5]} 14. Nc3 {[%clk 0:04:07.8]} 14... g6 {[%clk 0:04:32.8]} 15.
Rc1 {[%clk 0:04:06.5]} 15... d5 {[%clk 0:04:27.9]} 16. a4 {[%clk 0:04:03]} 16...
Bb4 {[%clk 0:04:25.5]} 17. Nb5 {[%clk 0:03:59.9]} 17... Bxe1 {[%clk 0:04:22.2]}
18. Kxe1 {[%clk 0:03:58.9]} 18... c6 {[%clk 0:04:11.8]} 19. Nxa7+ {[%clk
0:03:56.5]} 19... Kb8 {[%clk 0:04:10.8]} 20. Bf4+ {[%clk 0:03:55.1]} 20... Kxa7
{[%clk 0:04:09.7]} 21. Rc3 {[%clk 0:03:51.1]} 21... Rhe8+ {[%clk 0:04:08.7]} 22.
Kd1 {[%clk 0:03:49.7]} 22... Qg4+ {[%clk 0:04:07.3]} 23. f3 {[%clk 0:03:48.4]}
23... Qxf4 {[%clk 0:04:06.4]} 24. Kc2 {[%clk 0:03:47.1]} 24... Re2+ {[%clk
0:04:04.8]} 25. Kb1 {[%clk 0:03:44.6]} 25... Qd2 {[%clk 0:04:04.1]} 26. Rc1
{[%clk 0:03:42.5]} 26... Qb2# {[%clk 0:04:03.2]} 0-1

[Event "Live Chess"]
[Site "Chess.com"]
[Date "2023.05.21"]
[Round "-"]
[White "JanMur7"]
[Black "lHolyDiverl"]
[Result "1-0"]
[WhiteElo "1951"]
[BlackElo "555"]
[TimeControl "300"]
[EndTime "8:44:42 PDT"]
[Termination "JanMur7 won by resignation"]

1. e4 {[%clk 0:04:58.8]} 1... c6 {[%clk 0:04:58.9]} 2. d4 {[%clk 0:04:57.2]}
2... d5 {[%clk 0:04:58.2]} 3. Nc3 {[%clk 0:04:57.1]} 3... dxe4 {[%clk
0:04:56.5]} 4. Nxe4 {[%clk 0:04:57]} 4... Bf5 {[%clk 0:04:52.4]} 5. Ng3 {[%clk
0:04:55.9]} 5... Bg6 {[%clk 0:04:40.5]} 6. h4 {[%clk 0:04:47.3]} 6... h5 {[%clk
0:04:38.3]} 7. Nf3 {[%clk 0:04:41.1]} 7... c5 {[%clk 0:04:28.7]} 8. dxc5 {[%clk
0:04:24.8]} 8... Qxd1+ {[%clk 0:04:25.8]} 9. Kxd1 {[%clk 0:04:24.6]} 9... Nc6
{[%clk 0:04:19.6]} 10. Bd3 {[%clk 0:04:18.8]} 10... Bxd3 {[%clk 0:04:14.2]} 11.
cxd3 {[%clk 0:04:18.7]} 11... Rd8 {[%clk 0:04:09.7]} 12. Ke2 {[%clk 0:04:16.7]}
12... Nf6 {[%clk 0:04:04.3]} 13. Be3 {[%clk 0:04:13.9]} 13... Ng4 {[%clk
0:03:57.5]} 14. d4 {[%clk 0:04:05.8]} 14... g6 {[%clk 0:03:29.4]} 15. Rad1
{[%clk 0:03:57.9]} 15... Bg7 {[%clk 0:03:27.1]} 16. d5 {[%clk 0:03:32.9]} 16...
Nb4 {[%clk 0:03:20]} 17. d6 {[%clk 0:03:28.7]} 17... exd6 {[%clk 0:02:57.6]} 18.
cxd6 {[%clk 0:03:28.4]} 18... O-O {[%clk 0:02:54.9]} 19. a3 {[%clk 0:03:19.9]}
19... Nc2 {[%clk 0:02:41.6]} 20. b4 {[%clk 0:03:14.6]} 20... Ncxe3 {[%clk
0:02:27.6]} 21. fxe3 {[%clk 0:03:14.5]} 21... Rfe8 {[%clk 0:02:22.6]} 22. Rd3
{[%clk 0:02:56.2]} 22... Ne5 {[%clk 0:01:36.6]} 23. Nxe5 {[%clk 0:02:49.4]}
23... Bxe5 {[%clk 0:01:35.7]} 24. Ne4 {[%clk 0:02:48]} 24... Bb2 {[%clk
0:01:23.7]} 25. Nc5 {[%clk 0:02:32.7]} 25... b6 {[%clk 0:00:58.1]} 26. d7 {[%clk
0:02:26.9]} 26... Re4 {[%clk 0:00:42.5]} 27. Nxe4 {[%clk 0:02:19.2]} 1-0

[Event "Live Chess"]
[Site "Chess.com"]
[Date "2023.05.21"]
[Round "-"]
[White "1600x"]
[Black "Biranidun"]
[Result "0-1"]
[WhiteElo "1936"]
[BlackElo "2522"]
[TimeControl "300"]
[EndTime "8:44:53 PDT"]
[Termination "Biranidun won by checkmate"]

1. e4 {[%clk 0:04:52.7]} 1... c5 {[%clk 0:04:58.6]} 2. Nf3 {[%clk 0:04:48.5]}
2... d6 {[%clk 0:04:57.9]} 3. d4 {[%clk 0:04:44.1]} 3... cxd4 {[%clk 0:04:57.8]}
4. Qd3 {[%clk 0:04:40.2]} 4... e5 {[%clk 0:04:54.1]} 5. c3 {[%clk 0:04:36.2]}
5... dxc3 {[%clk 0:04:53.1]} 6. Nxc3 {[%clk 0:04:34.9]} 6... h6 {[%clk
0:04:52.4]} 7. h3 {[%clk 0:04:32.1]} 7... Nf6 {[%clk 0:04:51.2]} 8. b4 {[%clk
0:04:30.6]} 8... Be7 {[%clk 0:04:49.7]} 9. Be2 {[%clk 0:04:21.5]} 9... O-O
{[%clk 0:04:48.3]} 10. O-O {[%clk 0:04:18.6]} 10... Be6 {[%clk 0:04:47.1]} 11.
a3 {[%clk 0:04:15.8]} 11... Nbd7 {[%clk 0:04:46.1]} 12. Bb2 {[%clk 0:04:13.8]}
12... Rc8 {[%clk 0:04:44.3]} 13. Nd2 {[%clk 0:04:12.5]} 13... a6 {[%clk
0:04:42.4]} 14. Rac1 {[%clk 0:04:11]} 14... b5 {[%clk 0:04:29.2]} 15. Nd5 {[%clk
0:04:08]} 15... Bxd5 {[%clk 0:04:26.8]} 16. exd5 {[%clk 0:04:06.8]} 16... Nb6
{[%clk 0:04:24.7]} 17. Bf3 {[%clk 0:04:04.9]} 17... Qd7 {[%clk 0:04:21.3]} 18.
Rc6 {[%clk 0:04:01.5]} 18... Qa7 {[%clk 0:03:39.8]} 19. Rfc1 {[%clk 0:03:47.6]}
19... Qb8 {[%clk 0:03:15.5]} 20. R1c2 {[%clk 0:03:41.1]} 20... Nh7 {[%clk
0:03:09.7]} 21. Ne4 {[%clk 0:03:29.8]} 21... f5 {[%clk 0:03:07]} 22. Ng3 {[%clk
0:03:27.4]} 22... e4 {[%clk 0:03:04.2]} 23. Nxe4 {[%clk 0:03:13.3]} 23... fxe4
{[%clk 0:03:02.3]} 24. Bxe4 {[%clk 0:03:12]} 24... Nf6 {[%clk 0:02:59.4]} 25.
Bf5 {[%clk 0:02:53.1]} 25... Rxc6 {[%clk 0:02:51.6]} 26. dxc6 {[%clk 0:02:48.7]}
26... Qc7 {[%clk 0:02:50.4]} 27. Bd4 {[%clk 0:02:36]} 27... Nc4 {[%clk
0:02:48.9]} 28. Be6+ {[%clk 0:02:28.9]} 28... Kh8 {[%clk 0:02:48]} 29. Bxc4
{[%clk 0:02:25.6]} 29... bxc4 {[%clk 0:02:47.9]} 30. Qxc4 {[%clk 0:02:24.2]}
30... Ra8 {[%clk 0:02:40.5]} 31. Re2 {[%clk 0:02:21.5]} 31... d5 {[%clk
0:02:38.8]} 32. Qc1 {[%clk 0:02:18]} 32... Bf8 {[%clk 0:02:32.8]} 33. Be5 {[%clk
0:02:15.1]} 33... Qf7 {[%clk 0:02:30.7]} 34. c7 {[%clk 0:02:13.3]} 34... Rc8
{[%clk 0:02:29.8]} 35. Qc6 {[%clk 0:02:00.8]} 35... Ne8 {[%clk 0:02:19.8]} 36.
Qxh6+ {[%clk 0:01:47]} 36... Kg8 {[%clk 0:02:18.9]} 37. Qxa6 {[%clk 0:01:45.1]}
37... Qd7 {[%clk 0:02:12.1]} 38. Rc2 {[%clk 0:01:43]} 38... Bd6 {[%clk
0:02:07.1]} 39. Bxd6 {[%clk 0:01:41]} 39... Nxd6 {[%clk 0:02:07]} 40. Qc6 {[%clk
0:01:38.1]} 40... Qxc6 {[%clk 0:01:49.6]} 41. Rxc6 {[%clk 0:01:26.8]} 41... Ne8
{[%clk 0:01:47.3]} 42. b5 {[%clk 0:01:23.6]} 42... Rxc7 {[%clk 0:01:46.6]} 43.
Rxc7 {[%clk 0:01:22.1]} 43... Nxc7 {[%clk 0:01:46.5]} 44. b6 {[%clk 0:01:20.3]}
44... Na6 {[%clk 0:01:45.5]} 45. b7 {[%clk 0:01:19]} 45... Kf7 {[%clk
0:01:44.7]} 46. f4 {[%clk 0:01:17.6]} 46... Ke6 {[%clk 0:01:44.1]} 47. Kf2
{[%clk 0:01:16.2]} 47... d4 {[%clk 0:01:35.5]} 48. Ke2 {[%clk 0:01:14.8]} 48...
Kd5 {[%clk 0:01:34.8]} 49. g4 {[%clk 0:01:13.5]} 49... Kc4 {[%clk 0:01:33.1]}
50. f5 {[%clk 0:01:12.4]} 50... Kc3 {[%clk 0:01:26.7]} 51. Kd1 {[%clk
0:01:10.6]} 51... d3 {[%clk 0:01:01.2]} 52. h4 {[%clk 0:01:10.5]} 52... d2
{[%clk 0:00:46.8]} 53. h5 {[%clk 0:01:10.4]} 53... Kd3 {[%clk 0:00:40.4]} 54. g5
{[%clk 0:01:10.3]} 54... Nc5 {[%clk 0:00:39.5]} 55. b8=Q {[%clk 0:01:08.3]}
55... Ne4 {[%clk 0:00:39.2]} 56. Qd8+ {[%clk 0:01:07]} 56... Ke3 {[%clk
0:00:38.2]} 57. Qe7 {[%clk 0:01:05.2]} 57... Kd3 {[%clk 0:00:37]} 58. h6 {[%clk
0:01:04.4]} 58... Nc3# {[%clk 0:00:36.2]} 0-1